bitfinex/quotes_BTCUSD_20240820
["timestamp","ask_amount","ask_price","bid_price","bid_amount"]
[1724168243984,0.001,59259.0,59250.0,0.005]
[1724168244221,0.001,59258.0,59257.0,0.014]
[1724168244768,0.001,59256.0,59245.0,0.13386]
[1724168244923,0.001,59256.0,59247.0,0.03386]
[1724168245149,0.001,59256.0,59249.0,0.03386]
[1724168245755,0.001,59253.0,59249.0,0.03386]
[1724168245962,0.1895,59251.0,59249.0,0.03386]
[1724168246170,0.4067,59250.0,59246.0,0.03386]
[1724168246394,0.001,59250.0,59246.0,0.03386]
[1724168247133,0.001,59250.0,59242.0,0.03386]
[1724168247338,0.001,59247.0,59242.0,0.03386]
[1724168247547,0.001,59243.0,59242.0,0.03386]
[1724168247713,0.001,59241.0,59232.0,0.000821]
[1724168247916,0.001,59241.0,59233.0,0.03980128]
[1724168248323,0.001,59241.0,59232.0,0.000821]
[1724168249303,0.001,59241.0,59233.0,0.013]
[1724168249611,0.01046189,59240.0,59233.0,0.013]
[1724168250482,0.01046189,59240.0,59234.0,0.3952]
[1724168250678,0.001,59241.0,59235.0,0.1]
[1724168251122,0.001,59244.0,59235.0,0.11475128]
[1724168251347,0.001,59245.0,59236.0,0.023]
[1724168251518,0.0104584,59243.0,59237.0,0.59357573]
[1724168251730,0.01045627,59244.0,59238.0,0.2406027]
[1724168251931,0.5792,59251.0,59239.0,0.00337555]
[1724168252103,0.5802,59251.0,59239.0,0.00337555]
[1724168252461,0.01043848,59250.0,59240.0,0.023]
[1724168252717,0.01043848,59250.0,59241.0,0.08919318]
[1724168252920,0.01043848,59250.0,59242.0,0.023]
[1724168253150,0.01043848,59250.0,59243.0,0.00337536]
[1724168253351,0.01043848,59250.0,59244.0,0.023]
[1724168253573,0.1808,59255.0,59246.0,0.4079]
[1724168253795,0.010359,59249.0,59247.0,0.023]
[1724168254018,0.1808,59255.0,59247.0,0.023]
[1724168254239,0.1808,59255.0,59247.0,0.16619]
[1724168254683,0.01036916,59254.0,59247.0,0.123]
[1724168255122,0.01036916,59254.0,59247.0,0.129]
[1724168255835,0.01036916,59254.0,59247.0,0.123]
[1724168257053,0.01036916,59254.0,59247.0,0.129]
[1724168257311,0.01036916,59254.0,59247.0,0.135]
[1724168257539,0.001,59251.0,59247.0,0.112]
[1724168257757,0.001,59251.0,59247.0,0.012]
[1724168257981,0.01036918,59250.0,59247.0,0.012]
[1724168258222,0.01036918,59250.0,59248.0,0.00337537]
[1724168258455,0.0740297,59264.0,59249.0,0.5639]
[1724168258685,0.1813,59265.0,59253.0,0.4437]
[1724168258944,0.01040433,59263.0,59254.0,0.13723474]
[1724168259162,0.401,59269.0,59254.0,0.13723474]
[1724168259163,0.01044806,59264.0,59256.0,0.03386]
[1724168259416,0.001,59268.0,59255.0,0.4072]
[1724168259417,0.01043552,59262.0,59258.0,0.03386]
[1724168259658,0.01043762,59263.0,59260.0,0.03386]
[1724168259877,0.001,59268.0,59261.0,0.00337443]
[1724168260086,0.401,59269.0,59262.0,0.04758344]
[1724168260556,0.001,59269.0,59263.0,0.00337443]
[1724168260857,0.184,59270.0,59263.0,0.00337443]
[1724168261086,0.24466297,59276.0,59268.0,0.03386]
[1724168261313,0.010031,59276.0,59268.0,0.1]
[1724168261564,0.05866297,59276.0,59268.0,0.1]
[1724168261788,0.009031,59276.0,59271.0,0.03486]
[1724168262023,0.009031,59276.0,59271.0,0.03386]
[1724168262234,0.009031,59276.0,59271.0,0.05686]
[1724168263633,0.009031,59276.0,59271.0,0.46096]
[1724168263784,0.009031,59276.0,59271.0,0.6976985]
[1724168264203,0.009031,59276.0,59271.0,0.6836985]
[1724168264413,0.009031,59276.0,59271.0,0.76121487]
[1724168264859,0.009031,59276.0,59271.0,0.6826985]
[1724168265318,0.009031,59276.0,59271.0,0.6966985]
[1724168265527,0.009031,59276.0,59271.0,0.57296]
[1724168265972,0.009031,59276.0,59271.0,0.58696]
[1724168266419,0.009031,59276.0,59271.0,0.55896]
[1724168266664,0.009031,59276.0,59271.0,0.14786]
[1724168266891,0.01961363,59272.0,59271.0,0.04786]
[1724168267333,0.01961363,59272.0,59271.0,0.014]
[1724168268014,0.01961363,59272.0,59271.0,0.028]
[1724168268015,0.43171363,59272.0,59271.0,0.028]
[1724168268246,0.43171363,59272.0,59271.0,0.014]
[1724168268491,0.48128678,59272.0,59271.0,0.027]
[1724168269364,0.43171363,59272.0,59271.0,0.013]
[1724168269567,0.43171363,59272.0,59271.0,0.027]
[1724168270003,0.43271363,59272.0,59271.0,0.027]
[1724168270219,0.5060828,59272.0,59271.0,0.027]
[1724168270426,0.01961363,59272.0,59271.0,0.027]
[1724168271041,0.01961363,59272.0,59271.0,0.06086]
[1724168271707,0.01961363,59272.0,59271.0,0.05]
[1724168271879,0.0692036,59272.0,59271.0,0.027]
[1724168272129,0.01961363,59272.0,59271.0,0.027]
[1724168272360,0.01961363,59272.0,59271.0,0.598]
[1724168272566,0.01961363,59272.0,59271.0,0.76468619]
[1724168272787,0.01961363,59272.0,59271.0,0.86368619]
[1724168272989,0.00904201,59272.0,59271.0,0.127]
[1724168273198,0.05862062,59272.0,59271.0,0.127]
[1724168273413,0.06924132,59272.0,59271.0,0.1]
[1724168273820,0.06924132,59272.0,59271.0,0.127]
[1724168274043,0.01966271,59272.0,59271.0,0.04686]
[1724168274241,0.01966271,59272.0,59271.0,0.1]
[1724168274452,0.01966271,59272.0,59271.0,0.114]
[1724168274677,0.01966271,59272.0,59271.0,0.18386]
[1724168274880,0.01966271,59272.0,59271.0,0.24779288]
[1724168275086,0.00904201,59272.0,59271.0,0.63919288]
[1724168275523,0.00904201,59272.0,59271.0,0.64019288]
[1724168276164,0.00904201,59272.0,59271.0,0.63919288]
[1724168276374,0.00904201,59272.0,59271.0,0.64019288]
[1724168276577,0.00904201,59272.0,59271.0,0.64119288]
[1724168276783,0.00904201,59272.0,59271.0,0.64019288]
[1724168277400,0.00904201,59272.0,59271.0,0.82709288]
[1724168278245,0.00904201,59272.0,59271.0,0.82909288]
[1724168278448,0.00904201,59272.0,59271.0,0.86360925]
[1724168278656,0.00904201,59272.0,59271.0,0.81609288]
[1724168278859,0.00904201,59272.0,59271.0,0.86360925]
[1724168279286,0.009031,59276.0,59275.0,0.03786]
[1724168279494,0.009031,59276.0,59275.0,1.12356384]
[1724168279697,0.009031,59276.0,59275.0,1.27108021]
[1724168280114,0.009031,59276.0,59275.0,1.22356384]
[1724168281144,0.009031,59276.0,59275.0,1.23756384]
[1724168281363,0.009031,59276.0,59275.0,1.25156384]
[1724168281573,0.009031,59276.0,59275.0,1.23756384]
[1724168281755,0.009031,59276.0,59275.0,1.23119093]
[1724168281997,0.009031,59276.0,59275.0,1.23370637]
[1724168282407,0.009031,59276.0,59275.0,1.23670637]
[1724168282610,0.009031,59276.0,59275.0,1.22270637]
[1724168282995,0.009031,59276.0,59275.0,1.23670637]
[1724168283249,0.009031,59276.0,59275.0,1.22270637]
[1724168283464,0.00110311,59279.0,59278.0,0.60456]
[1724168283668,0.009031,59291.0,59290.0,1.08416]
[1724168283910,0.009031,59291.0,59290.0,1.18316]
[1724168284105,0.009031,59291.0,59290.0,1.01466]
[1724168284742,0.009031,59291.0,59290.0,1.0264413]
[1724168284958,0.009031,59291.0,59290.0,0.2122778]
[1724168285161,0.009031,59291.0,59290.0,0.1456413]
[1724168285366,0.009031,59291.0,59290.0,0.0456413]
[1724168285775,0.009031,59291.0,59290.0,0.03386]
[1724168286206,0.401931,59291.0,59290.0,0.03386]
[1724168286409,0.401931,59291.0,59290.0,0.04786]
[1724168286537,0.01852149,59291.0,59290.0,0.06186]
[1724168286969,0.01852149,59291.0,59290.0,0.04786]
[1724168287161,0.21282149,59291.0,59287.0,0.03386]
[1724168287360,0.21282149,59291.0,59290.0,0.06186]
[1724168287566,0.21282149,59291.0,59290.0,0.08486]
[1724168287567,0.01852149,59291.0,59290.0,0.08486]
[1724168287990,0.01852149,59291.0,59290.0,0.07086]
[1724168289969,0.01852149,59291.0,59290.0,0.08486]
[1724168290798,0.01852149,59291.0,59290.0,0.18486]
[1724168291094,0.01852149,59291.0,59290.0,0.16186]
[1724168292804,0.01852149,59291.0,59290.0,0.18823284]
[1724168292991,0.01852149,59291.0,59290.0,0.18486]
[1724168293144,0.01852149,59291.0,59290.0,0.19656822]
[1724168293362,0.01852149,59291.0,59290.0,0.19994103]
[1724168294651,0.009031,59291.0,59290.0,0.19994103]
[1724168294871,0.009031,59291.0,59290.0,0.31443513]
[1724168295255,0.009031,59291.0,59290.0,0.31106232]
[1724168295452,0.009031,59291.0,59290.0,0.19656822]
[1724168295876,0.009031,59291.0,59290.0,0.16856822]
[1724168296123,0.01962197,59291.0,59290.0,0.17086]
[1724168296324,0.009031,59291.0,59290.0,0.18486]
[1724168296496,0.01962048,59291.0,59290.0,0.14786]
[1724168296691,0.009031,59291.0,59290.0,0.14786]
[1724168296924,0.01961178,59291.0,59290.0,0.16186]
[1724168297139,0.01961178,59291.0,59290.0,0.14786]
[1724168297365,0.01961178,59291.0,59290.0,0.16186]
[1724168299774,0.01961178,59291.0,59290.0,0.16186]
[1724168300944,0.01961178,59291.0,59290.0,0.18486]
[1724168301289,0.009031,59291.0,59290.0,0.18486]
[1724168301694,0.01917379,59291.0,59290.0,0.18486]
[1724168301912,0.009031,59291.0,59290.0,0.18486]
[1724168302166,0.01917379,59291.0,59290.0,0.18486]
[1724168302344,0.009031,59291.0,59290.0,0.28026904]
[1724168302567,0.01917379,59291.0,59290.0,0.28026904]
[1724168302746,0.009031,59291.0,59290.0,0.28026904]
[1724168302988,0.01917524,59291.0,59290.0,0.28026904]
[1724168303164,0.009031,59291.0,59290.0,0.28026904]
[1724168303394,0.01917524,59291.0,59290.0,0.16186]
[1724168303584,0.05838765,59291.0,59290.0,0.16186]
[1724168303816,0.01917669,59291.0,59290.0,0.16186]
[1724168304571,0.11788999,59291.0,59290.0,0.16186]
[1724168304730,0.0936156,59291.0,59290.0,0.16186]
[1724168304932,0.01917669,59291.0,59290.0,0.16186]
[1724168305131,0.068784,59291.0,59290.0,0.16186]
[1724168305354,0.0936156,59291.0,59290.0,0.16186]
[1724168306392,0.01917669,59291.0,59290.0,0.16186]
[1724168306850,0.09357179,59291.0,59290.0,0.16186]
[1724168307303,0.01917669,59291.0,59290.0,0.16186]
[1724168308193,0.01917669,59291.0,59290.0,0.21469904]
[1724168308500,0.06873211,59291.0,59290.0,0.18486]
[1724168308666,0.01917669,59291.0,59290.0,0.18486]
[1724168309766,0.33415392,59291.0,59290.0,0.16186]
[1724168309973,0.33415392,59291.0,59290.0,0.06186]
[1724168310198,0.21027669,59291.0,59290.0,0.06186]
[1724168310868,0.3094497,59291.0,59290.0,0.06186]
[1724168311096,0.21027669,59291.0,59290.0,0.06186]
[1724168311525,0.21027669,59291.0,59290.0,0.16186]
[1724168311947,0.009031,59291.0,59290.0,0.23769904]
[1724168312190,0.08338479,59291.0,59290.0,0.23769904]
[1724168312773,0.08338479,59291.0,59290.0,0.18486]
[1724168313187,0.618131,59291.0,59290.0,0.16186]
[1724168313406,0.618131,59291.0,59290.0,0.06186]
[1724168314959,0.009031,59291.0,59290.0,0.06186]
[1724168315370,0.009031,59291.0,59290.0,0.16186]
[1724168315593,0.13306795,59291.0,59290.0,0.16186]
[1724168316230,0.009031,59291.0,59290.0,0.16186]
[1724168317940,0.009031,59291.0,59290.0,0.21469904]
[1724168318148,0.009031,59291.0,59290.0,0.23769904]
[1724168318560,0.009031,59291.0,59290.0,0.16186]
[1724168319178,0.15810157,59291.0,59290.0,0.16186]
[1724168319393,0.009031,59291.0,59290.0,0.16186]
[1724168320040,0.15822509,59291.0,59290.0,0.16186]
[1724168320316,0.009031,59291.0,59290.0,0.16186]
[1724168321880,0.009031,59291.0,59290.0,0.21469904]
[1724168322012,0.009031,59291.0,59290.0,0.24107193]
[1724168322529,0.009031,59291.0,59290.0,0.18486]
[1724168323551,0.009031,59291.0,59290.0,0.16186]
[1724168323735,0.17700334,59291.0,59290.0,0.16186]
[1724168324945,0.206731,59291.0,59290.0,0.06186]
[1724168325153,0.206731,59291.0,59290.0,0.16186]
[1724168326455,0.206731,59291.0,59290.0,0.06186]
[1724168326655,0.207731,59291.0,59290.0,0.06186]
[1724168328362,0.206731,59291.0,59290.0,0.061945]
[1724168328831,0.009031,59291.0,59290.0,0.161945]
[1724168329264,0.009031,59291.0,59290.0,0.21479254]
[1724168329467,0.009031,59291.0,59290.0,0.62399254]
[1724168330082,0.009031,59291.0,59290.0,0.64699254]
[1724168330480,0.009031,59291.0,59290.0,0.594145]
[1724168332790,0.009031,59291.0,59290.0,0.184945]
[1724168333212,0.17716172,59291.0,59290.0,0.184945]
[1724168335652,0.009031,59291.0,59290.0,0.378545]
[1724168337416,0.17722614,59291.0,59290.0,0.378545]
[1724168337618,0.00482026,59291.0,59290.0,0.378545]
[1724168338313,0.00482026,59291.0,59290.0,0.45305254]
[1724168340396,0.00482026,59291.0,59290.0,0.184945]
[1724168341460,0.17300116,59291.0,59290.0,0.184945]
[1724168342089,0.17300116,59291.0,59290.0,0.084945]
[1724168342302,0.17300116,59291.0,59290.0,0.061945]
[1724168342303,0.39122026,59291.0,59290.0,0.061945]
[1724168342526,0.58302026,59291.0,59290.0,0.061945]
[1724168343748,0.64132229,59291.0,59290.0,0.061945]
[1724168343949,0.64132229,59291.0,59290.0,0.028085]
[1724168344526,0.90924072,59291.0,59290.0,0.028085]
[1724168344875,0.91024072,59291.0,59290.0,0.028085]
[1724168345079,0.91224072,59291.0,59290.0,0.014085]
[1724168345281,0.91224072,59291.0,59264.0,0.061905]
[1724168345282,0.001,59280.0,59264.0,0.061905]
[1724168345520,1.83753417,59280.0,59264.0,0.061905]
[1724168345734,1.83753417,59280.0,59264.0,0.04539346]
[1724168345735,2.00489126,59280.0,59264.0,0.04539346]
[1724168346566,2.00489126,59280.0,59264.0,0.14539346]
[1724168346766,1.84091248,59280.0,59264.0,0.14539346]
[1724168347844,1.84191248,59280.0,59264.0,0.14539346]
[1724168348884,1.83853417,59280.0,59269.0,0.3907]
[1724168349094,1.83853417,59280.0,59271.0,0.03382]
[1724168349299,1.83853417,59280.0,59274.0,0.03382]
[1724168349713,2.00640271,59280.0,59274.0,0.03382]
[1724168350119,2.00534116,59280.0,59274.0,0.03382]
[1724168350326,2.00934116,59280.0,59274.0,0.03382]
[1724168350877,2.00934116,59280.0,59279.0,0.001821]
[1724168351151,1.84153417,59280.0,59279.0,0.001821]
[1724168351920,1.84153417,59280.0,59279.0,0.006821]
[1724168352607,1.84153417,59280.0,59279.0,0.001821]
[1724168352811,1.84153417,59280.0,59279.0,0.000821]
[1724168352812,1.83753417,59280.0,59279.0,0.000821]
[1724168352978,1.83753417,59280.0,59279.0,0.003821]
[1724168353831,1.83753417,59280.0,59279.0,0.004821]
[1724168354200,1.83753417,59280.0,59279.0,0.005821]
[1724168354404,1.83753417,59280.0,59279.0,0.001821]
[1724168354804,1.83753417,59280.0,59279.0,0.004821]
[1724168355009,1.25213417,59280.0,59279.0,0.004821]
[1724168355220,1.25213417,59280.0,59279.0,0.195321]
[1724168355221,0.7575,59280.0,59279.0,0.195321]
[1724168355417,0.7575,59280.0,59279.0,0.318321]
[1724168355621,0.7575,59280.0,59279.0,0.3976931]
[1724168355835,0.57954489,59280.0,59279.0,0.8246131]
[1724168356046,0.07454489,59281.0,59280.0,0.42892]
[1724168356251,0.049498,59282.0,59280.0,0.59571369]
[1724168356446,0.049498,59282.0,59281.0,0.05682]
[1724168356657,0.049498,59282.0,59281.0,0.15682]
[1724168356862,0.049498,59282.0,59281.0,0.55372]
[1724168357290,0.049498,59282.0,59281.0,0.55272]
[1724168358308,0.09939357,59283.0,59281.0,0.14782]
[1724168358511,0.09939357,59282.0,59281.0,0.14782]
[1724168358755,0.12424196,59283.0,59281.0,0.14782]
[1724168358923,0.001,59282.0,59281.0,0.16182]
[1724168359126,0.12524196,59282.0,59281.0,0.14782]
[1724168359542,0.12524196,59282.0,59281.0,0.6434241]
[1724168359543,0.10039357,59282.0,59281.0,0.6434241]
[1724168359789,0.10039357,59282.0,59281.0,0.6294241]
[1724168359790,0.09939357,59282.0,59281.0,0.6294241]
[1724168360018,0.09939357,59283.0,59281.0,0.6664241]
[1724168360213,0.001,59282.0,59281.0,0.6524241]
[1724168360453,0.001,59282.0,59281.0,0.57842]
[1724168360657,0.07555032,59282.0,59281.0,0.57842]
[1724168360868,0.001,59282.0,59281.0,0.16182]
[1724168361112,0.10039357,59282.0,59281.0,0.14782]
[1724168361911,0.12424196,59283.0,59281.0,0.14782]
[1724168362327,0.12424196,59282.0,59281.0,0.16182]
[1724168362560,0.12424196,59282.0,59281.0,0.14782]
[1724168362769,0.12524196,59282.0,59281.0,0.16182]
[1724168363243,0.12424196,59282.0,59281.0,0.14782]
[1724168364301,0.12424196,59282.0,59281.0,0.13382]
[1724168364517,0.12524196,59283.0,59281.0,0.15682]
[1724168364698,0.07454249,59282.0,59281.0,0.15682]
[1724168364936,0.07454249,59282.0,59281.0,0.17082]
[1724168365144,0.07554249,59282.0,59281.0,0.18482]
[1724168365575,0.07454249,59282.0,59281.0,0.17082]
[1724168365794,0.07454249,59282.0,59281.0,0.18482]
[1724168366009,0.07454249,59282.0,59281.0,0.17082]
[1724168366480,0.07554249,59282.0,59281.0,0.17082]
[1724168366687,0.10038739,59282.0,59281.0,0.18482]
[1724168366896,0.10036576,59282.0,59281.0,0.18482]
[1724168367124,0.001,59282.0,59281.0,0.18482]
[1724168367341,0.001,59282.0,59281.0,0.17082]
[1724168367524,0.12524196,59282.0,59281.0,0.17082]
[1724168367773,0.12524196,59282.0,59281.0,0.18482]
[1724168367953,0.12524196,59282.0,59281.0,0.16182]
[1724168368189,0.001,59282.0,59281.0,0.16182]
[1724168370932,0.00190421,59282.0,59281.0,0.16182]
[1724168373031,0.15096742,59282.0,59281.0,0.16182]
[1724168373240,0.62620095,59282.0,59281.0,0.028]
[1724168373457,1.22620095,59282.0,59281.0,0.028]
[1724168374101,1.20990421,59282.0,59281.0,0.028]
[1724168374309,1.20990421,59282.0,59281.0,0.014]
[1724168374517,1.45440173,59282.0,59281.0,0.014]
[1724168374728,1.45440173,59282.0,59281.0,0.00180718]
[1724168374729,1.20990421,59282.0,59281.0,0.00180718]
[1724168375575,1.20990421,59282.0,59279.0,0.000821]
[1724168375576,0.001,59280.0,59279.0,0.000821]
[1724168375792,1.76511248,59280.0,59279.0,0.000821]
[1724168376002,1.76173417,59280.0,59279.0,0.000821]
[1724168376848,1.34603417,59280.0,59279.0,0.000821]
[1724168377267,1.34803417,59280.0,59279.0,0.000821]
[1724168377478,1.34603417,59280.0,59279.0,0.000821]
[1724168377904,1.91321295,59280.0,59279.0,0.000821]
[1724168379396,1.91721295,59280.0,59279.0,0.000821]
[1724168379599,2.05316495,59280.0,59279.0,0.000821]
[1724168379802,1.92021295,59280.0,59279.0,0.000821]
[1724168380008,1.91721295,59280.0,59279.0,0.000821]
[1724168380850,2.05616495,59280.0,59279.0,0.000821]
[1724168381057,2.2964508,59280.0,59279.0,0.000821]
[1724168381291,2.32606995,59280.0,59279.0,0.000821]
[1724168382391,2.05616495,59280.0,59279.0,0.000821]
[1724168382822,2.32606995,59280.0,59279.0,0.000821]
[1724168383027,2.05516495,59280.0,59279.0,0.000821]
[1724168383235,2.05216495,59280.0,59279.0,0.000821]
[1724168383473,1.91721295,59280.0,59279.0,0.000821]
[1724168383685,2.35323417,59280.0,59279.0,0.000821]
[1724168387968,2.35423417,59280.0,59279.0,0.000821]
[1724168388181,2.35623417,59280.0,59279.0,0.000821]
[1724168388798,2.35323417,59280.0,59279.0,0.000821]
[1724168393601,3.02999617,59280.0,59279.0,0.00010606]
[1724168394694,3.03199617,59280.0,59279.0,0.00010606]
[1724168397265,3.03199617,59280.0,59279.0,6.559e-05]
[1724168397266,3.30290117,59280.0,59279.0,6.559e-05]
[1724168397469,1.600705,59273.0,59272.0,0.000821]
[1724168397680,6.248642,59273.0,59272.0,0.000821]
[1724168397872,6.40238613,59273.0,59272.0,0.000821]
[1724168398859,6.40438613,59273.0,59272.0,0.000821]
[1724168399061,6.56836491,59273.0,59272.0,0.000821]
[1724168400646,6.83930191,59273.0,59272.0,0.000821]
[1724168400756,7.52960191,59273.0,59272.0,0.000821]
[1724168400957,0.635,59264.0,59263.0,0.000821]
[1724168401160,1.51419045,59264.0,59263.0,0.000821]
[1724168401367,1.27088661,59264.0,59263.0,0.000821]
[1724168401580,1.27288661,59264.0,59263.0,0.000821]
[1724168401787,1.26988661,59264.0,59263.0,0.000821]
[1724168402222,1.40487561,59264.0,59263.0,0.000821]
[1724168402424,1.40587561,59264.0,59263.0,0.000821]
[1724168402627,1.40787561,59264.0,59263.0,0.000821]
[1724168403236,1.26988661,59264.0,59263.0,0.000821]
[1724168403645,1.355989,59264.0,59263.0,0.00010604]
[1724168403856,1.221,59264.0,59263.0,0.00010604]
[1724168404273,0.8284,59264.0,59263.0,0.00010604]
[1724168404487,0.634,59264.0,59263.0,0.00010604]
[1724168407932,0.635,59264.0,59263.0,0.00010604]
[1724168408168,0.634,59264.0,59263.0,0.00010604]
[1724168408585,0.034,59264.0,59263.0,0.40500604]
[1724168408798,0.634,59264.0,59263.0,0.40500604]
[1724168409029,1.0273,59264.0,59263.0,0.00010604]
[1724168409249,1.2198,59264.0,59263.0,0.00010604]
[1724168409457,1.489778,59264.0,59263.0,0.00010604]
[1724168409682,1.38677878,59264.0,59263.0,0.00010604]
[1724168409892,1.38377878,59264.0,59263.0,0.00010604]
[1724168410101,1.38077878,59264.0,59263.0,0.00010604]
[1724168410319,1.78974578,59264.0,59263.0,0.00010604]
[1724168411160,1.79274578,59264.0,59263.0,0.00010604]
[1724168411365,1.52276778,59264.0,59263.0,0.00010604]
[1724168411577,1.79274578,59264.0,59263.0,0.00010604]
[1724168411779,2.03705021,59264.0,59263.0,0.00010604]
[1724168412221,1.78974578,59264.0,59263.0,0.00010604]
[1724168412433,2.06372378,59264.0,59263.0,0.00010604]
[1724168412648,2.35670178,59264.0,59263.0,0.00010604]
[1724168412876,0.001,59242.0,59236.0,0.49229154]
[1724168413091,0.16847253,59242.0,59236.0,0.49229154]
[1724168413324,0.16851867,59242.0,59233.0,0.3828]
[1724168413529,0.001,59242.0,59233.0,0.3828]
[1724168413738,0.001,59242.0,59230.0,0.2049]
[1724168413739,0.001,59242.0,59241.0,0.402121]
[1724168414371,0.001,59242.0,59241.0,0.000821]
[1724168414372,0.601,59242.0,59241.0,0.000821]
[1724168414580,1.23088661,59242.0,59241.0,0.000821]
[1724168415211,1.23088661,59242.0,59241.0,0.00010601]
[1724168415212,1.66400361,59242.0,59241.0,0.00010601]
[1724168415416,1.88406086,59242.0,59241.0,0.00010601]
[1724168415633,1.36992561,59242.0,59241.0,0.00010601]
[1724168415857,1.186,59242.0,59241.0,0.00010601]
[1724168416067,1.183,59242.0,59241.0,0.00010601]
[1724168416288,0.601,59242.0,59241.0,0.00010601]
[1724168416735,0.7684002,59242.0,59241.0,0.00010601]
[1724168416966,0.601,59242.0,59241.0,0.00010601]
[1724168417209,0.7684002,59242.0,59241.0,0.00010601]
[1724168417388,0.69958002,59242.0,59241.0,0.00010601]
[1724168417543,0.601,59242.0,59241.0,0.00010601]
[1724168417742,0.601,59242.0,59241.0,0.38210601]
[1724168418457,0.604,59242.0,59241.0,0.38210601]
[1724168418659,0.601,59242.0,59241.0,0.38210601]
[1724168418881,0.604,59242.0,59241.0,0.38210601]
[1724168419491,0.68228792,59242.0,59241.0,0.38210601]
[1724168419868,0.604,59242.0,59241.0,0.38210601]
[1724168420274,0.60490421,59242.0,59241.0,0.38210601]
[1724168420719,0.00490421,59242.0,59241.0,0.38210601]
[1724168421331,0.12890936,59242.0,59241.0,0.38210601]
[1724168421788,0.12790936,59242.0,59241.0,0.38210601]
[1724168421987,0.10309963,59242.0,59241.0,0.38210601]
[1724168422195,0.10009963,59242.0,59241.0,0.48210601]
[1724168422388,0.10109963,59242.0,59241.0,0.48210601]
[1724168422588,0.10309963,59242.0,59241.0,0.48210601]
[1724168422796,0.10109963,59242.0,59241.0,0.48210601]
[1724168423222,0.00290421,59242.0,59241.0,0.48210601]
[1724168423363,0.0773098,59242.0,59241.0,0.48210601]
[1724168423619,0.0769818,59242.0,59241.0,0.48210601]
[1724168424417,0.0779818,59242.0,59241.0,0.48210601]
[1724168425061,0.00357621,59242.0,59241.0,0.48210601]
[1724168425256,0.10277837,59242.0,59241.0,0.48210601]
[1724168425457,0.10077837,59242.0,59241.0,0.48210601]
[1724168425672,0.12558136,59242.0,59241.0,0.48210601]
[1724168425879,0.00157621,59242.0,59241.0,0.48510601]
[1724168426505,0.00157621,59242.0,59241.0,0.48210601]
[1724168426878,0.00495452,59242.0,59241.0,0.38610601]
[1724168427276,0.00495452,59242.0,59241.0,0.00410601]
[1724168428241,0.15386825,59242.0,59241.0,0.00410601]
[1724168428467,0.15686825,59242.0,59241.0,0.00410601]
[1724168428711,0.15686825,59242.0,59241.0,0.00010601]
[1724168429092,0.00795452,59242.0,59241.0,0.00010601]
[1724168429289,0.00457621,59242.0,59241.0,0.00010601]
[1724168430263,0.15348994,59242.0,59241.0,0.00010601]
[1724168431584,0.23521724,59242.0,59241.0,0.00010601]
[1724168431798,0.16762136,59242.0,59241.0,0.00010601]
[1724168432216,0.01870763,59242.0,59241.0,0.00010601]
[1724168433038,0.01532932,59242.0,59241.0,0.00010601]
[1724168433881,0.01432932,59242.0,59241.0,0.38010601]
[1724168434101,0.01432932,59242.0,59241.0,0.56140601]
[1724168434102,0.11367571,59242.0,59241.0,0.56140601]
[1724168434312,0.08884212,59242.0,59241.0,0.66140601]
[1724168434520,0.06400654,59242.0,59241.0,0.66140601]
[1724168434926,0.06100654,59242.0,59241.0,0.66140601]
[1724168435128,0.06200654,59242.0,59241.0,0.66140601]
[1724168435337,0.06200654,59242.0,59241.0,0.67040601]
[1724168435547,0.0620131,59242.0,59241.0,0.67040601]
[1724168435752,0.062016,59242.0,59241.0,0.67040601]
[1724168435958,0.08684212,59242.0,59241.0,0.67040601]
[1724168436167,0.01232932,59242.0,59241.0,0.67040601]
[1724168436377,0.08686809,59242.0,59241.0,0.67040601]
[1724168436792,0.01232932,59242.0,59241.0,0.67040601]
[1724168437120,0.11167571,59242.0,59241.0,0.67040601]
[1724168438173,0.01232932,59242.0,59241.0,0.67040601]
[1724168439160,0.13650896,59242.0,59241.0,0.67040601]
[1724168440125,0.01232932,59242.0,59241.0,0.67040601]
[1724168440523,0.00157621,59242.0,59241.0,0.67040601]
[1724168441317,0.15058075,59242.0,59241.0,0.67040601]
[1724168441639,0.16296157,59242.0,59241.0,0.67040601]
[1724168442246,0.01373466,59242.0,59241.0,0.67040601]
[1724168442765,0.00157621,59242.0,59241.0,0.67040601]
[1724168442971,0.01373466,59242.0,59241.0,0.67040601]
[1724168443186,0.00157621,59242.0,59241.0,0.67040601]
[1724168443400,0.04473466,59242.0,59241.0,0.38910601]
[1724168443629,0.04473466,59242.0,59241.0,0.00910601]
[1724168443630,0.03257621,59242.0,59241.0,0.00910601]
[1724168443834,0.0447818,59242.0,59241.0,0.00910601]
[1724168444456,0.10925998,59242.0,59241.0,0.00910601]
[1724168444662,0.21274552,59242.0,59241.0,0.00910601]
[1724168445685,0.0447818,59242.0,59241.0,0.00910601]
[1724168445908,0.21276218,59242.0,59241.0,0.00910601]
[1724168447754,0.21277673,59242.0,59241.0,0.00910601]
[1724168449746,0.21257357,59242.0,59241.0,0.00910601]
[1724168450397,0.04457864,59242.0,59241.0,0.00910601]
[1724168452681,0.23257864,59242.0,59241.0,0.00910601]
[1724168452904,0.23257864,59242.0,59241.0,0.00117586]
[1724168452905,0.88847125,59242.0,59241.0,0.00117586]
[1724168453108,0.77851764,59242.0,59241.0,0.00117586]
[1724168453939,0.631,59233.0,59232.0,0.000821]
[1724168454137,1.2293,59233.0,59232.0,0.000821]
[1724168454386,0.64294267,59233.0,59232.0,0.000821]
[1724168454622,0.04294267,59233.0,59232.0,0.000821]
[1724168454840,0.20997251,59233.0,59232.0,0.556921]
[1724168455092,0.04194267,59233.0,59232.0,0.556921]
[1724168455537,0.04194267,59233.0,59232.0,0.376921]
[1724168455765,0.20997251,59233.0,59232.0,0.376921]
[1724168455984,0.21097251,59233.0,59232.0,0.000821]
[1724168456207,0.33096976,59233.0,59232.0,0.000821]
[1724168456425,0.36083992,59233.0,59232.0,0.000821]
[1724168456642,0.24084267,59233.0,59232.0,0.000821]
[1724168456870,0.24184267,59233.0,59232.0,0.000821]
[1724168457112,0.24084267,59233.0,59232.0,0.000821]
[1724168457773,0.24184267,59233.0,59232.0,0.007821]